[Event "Titled Tuesday Blitz May 16 Early 2023"]
[White "Garrido, Denis"]
[Black "Santos Ruiz, Miguel"]
[WhiteFideId "601217"]
[BlackFideId "22291482"]
[WhiteElo "2320"]
[BlackElo "2499"]
[Result "0-1"]
[Round "08"]
[TimeControl "180+2"]
[Date "2023.05.16"]
[WhiteClock "0:00:00"]
[BlackClock "0:00:11"]

1. d4 {[%clk 0:03:00]}  Nf6 {[%clk 0:03:00]} 2. c4 {[%clk 0:03:00]}  e6 {[%clk 0:02:59]} 3. Nf3 {[%clk 0:02:57]}  d5 {[%clk 0:02:57]} 4. g3 {[%clk 0:02:57]}  Bb4+ {[%clk 0:02:55]} 5. Bd2 {[%clk 0:02:57]}  Be7 {[%clk 0:02:55]} 6. Qc2 {[%clk 0:02:56]}  O-O {[%clk 0:02:36]} 7. Bg2 {[%clk 0:02:56]}  Ne4 {[%clk 0:02:32]} 8. Be3 {[%clk 0:02:51]}  Nd6 {[%clk 0:02:14]} 9. Nbd2 {[%clk 0:02:36]}  Nf5 {[%clk 0:02:14]} 10. O-O {[%clk 0:02:29]}  Nxe3 {[%clk 0:02:13]} 11. fxe3 {[%clk 0:02:30]}  f5 {[%clk 0:02:09]} 12. Ne5 {[%clk 0:02:23]}  c6 {[%clk 0:02:07]} 13. Rab1 {[%clk 0:02:20]}  Nd7 {[%clk 0:02:06]} 14. Ndf3 {[%clk 0:02:19]}  Nxe5 {[%clk 0:02:04]} 15. Nxe5 {[%clk 0:02:19]}  Bd6 {[%clk 0:02:03]} 16. Nd3 {[%clk 0:02:17]}  Qg5 {[%clk 0:02:02]} 17. Rf3 {[%clk 0:02:08]}  a5 {[%clk 0:01:56]} 18. b3 {[%clk 0:02:04]}  Bd7 {[%clk 0:01:55]} 19. c5 {[%clk 0:01:59]}  Bc7 {[%clk 0:01:55]} 20. a3 {[%clk 0:01:58]}  Rfe8 {[%clk 0:01:43]} 21. Qc3 {[%clk 0:01:45]}  e5 {[%clk 0:01:34]} 22. dxe5 {[%clk 0:01:41]}  Qe7 {[%clk 0:01:34]} 23. b4 {[%clk 0:01:25]}  axb4 {[%clk 0:01:31]} 24. axb4 {[%clk 0:01:25]}  Bxe5 {[%clk 0:01:13]} 25. Nxe5 {[%clk 0:01:23]}  Qxe5 {[%clk 0:01:14]} 26. Qd3 {[%clk 0:01:13]}  Ra2 {[%clk 0:00:59]} 27. b5 {[%clk 0:00:55]}  Ra1 {[%clk 0:00:34]} 28. bxc6 {[%clk 0:00:48]}  bxc6 {[%clk 0:00:32]} 29. Rff1 {[%clk 0:00:36]}  Rxb1 {[%clk 0:00:31]} 30. Rxb1 {[%clk 0:00:36]}  Qxe3+ {[%clk 0:00:30]} 31. Qxe3 {[%clk 0:00:37]}  Rxe3 {[%clk 0:00:30]} 32. Rb7 {[%clk 0:00:37]}  Be8 {[%clk 0:00:26]} 33. Bf3 {[%clk 0:00:19]}  Rc3 {[%clk 0:00:24]} 34. Re7 {[%clk 0:00:20]}  Kf8 {[%clk 0:00:23]} 35. Re5 {[%clk 0:00:21]}  g6 {[%clk 0:00:23]} 36. g4 {[%clk 0:00:18]}  fxg4 {[%clk 0:00:21]} 37. Bxg4 {[%clk 0:00:19]}  Rxc5 {[%clk 0:00:20]} 38. Kf2 {[%clk 0:00:19]}  Rc4 {[%clk 0:00:20]} 39. Bf3 {[%clk 0:00:20]}  Bd7 {[%clk 0:00:18]} 40. Kg3 {[%clk 0:00:19]}  Kf7 {[%clk 0:00:18]} 41. Re3 {[%clk 0:00:19]}  Kf6 {[%clk 0:00:17]} 42. Ra3 {[%clk 0:00:19]}  g5 {[%clk 0:00:16]} 43. Ra7 {[%clk 0:00:19]}  Bf5 {[%clk 0:00:16]} 44. Rc7 {[%clk 0:00:16]}  Bg6 {[%clk 0:00:16]} 45. Kf2 {[%clk 0:00:15]}  h5 {[%clk 0:00:15]} 46. Kg3 {[%clk 0:00:14]}  h4+ {[%clk 0:00:15]} 47. Kf2 {[%clk 0:00:14]}  g4 {[%clk 0:00:12]} 48. Bg2 {[%clk 0:00:10]}  Bf5 {[%clk 0:00:12]} 49. Bf1 {[%clk 0:00:06]}  Ke5 {[%clk 0:00:12]} 50. e4 {[%clk 0:00:06]}  Rc2+ {[%clk 0:00:11]} 51. Ke1 {[%clk 0:00:06]}  Bxe4 {[%clk 0:00:11]} 52. Rg7 {[%clk 0:00:04]}  Kf4 {[%clk 0:00:10]} 53. Rf7+ {[%clk 0:00:05]}  Ke3 {[%clk 0:00:11]} 54. Kd1 {[%clk 0:00:00]}  Rxh2 {[%clk 0:00:11]} 0-1


[Site "https://www.chess.com"]

[Event "Titled Tuesday Blitz May 16 Early 2023"]
[White "Gritsenko, Nikolai"]
[Black "Lazavik, Denis"]
[WhiteFideId "14112493"]
[BlackFideId "13515110"]
[WhiteElo "2389"]
[BlackElo "2560"]
[Result "0-1"]
[Round "08"]
[TimeControl "180+2"]
[Date "2023.05.16"]
[WhiteClock "0:00:01"]
[BlackClock "0:00:51"]

1. d4 {[%clk 0:03:00]}  f5 {[%clk 0:02:59]} 2. g3 {[%clk 0:02:57]}  Nf6 {[%clk 0:03:00]} 3. Bg2 {[%clk 0:02:57]}  g6 {[%clk 0:03:01]} 4. Nd2 {[%clk 0:02:50]}  Bg7 {[%clk 0:02:57]} 5. e4 {[%clk 0:02:50]}  fxe4 {[%clk 0:02:58]} 6. Nxe4 {[%clk 0:02:50]}  Nxe4 {[%clk 0:02:58]} 7. Bxe4 {[%clk 0:02:51]}  d5 {[%clk 0:02:59]} 8. Bg2 {[%clk 0:02:48]}  Nc6 {[%clk 0:02:59]} 9. Ne2 {[%clk 0:02:46]}  Bg4 {[%clk 0:02:58]} 10. f3 {[%clk 0:02:44]}  Bf5 {[%clk 0:02:56]} 11. c3 {[%clk 0:02:42]}  e5 {[%clk 0:02:55]} 12. dxe5 {[%clk 0:02:41]}  Nxe5 {[%clk 0:02:55]} 13. O-O {[%clk 0:02:38]}  Qd7 {[%clk 0:02:52]} 14. Nd4 {[%clk 0:02:35]}  O-O-O {[%clk 0:02:51]} 15. f4 {[%clk 0:02:15]}  Nc4 {[%clk 0:02:46]} 16. b3 {[%clk 0:01:57]}  Nd6 {[%clk 0:02:46]} 17. Bxd5 {[%clk 0:01:52]}  Be4 {[%clk 0:02:44]} 18. Bxe4 {[%clk 0:01:45]}  Nxe4 {[%clk 0:02:44]} 19. Bb2 {[%clk 0:01:44]}  Rhe8 {[%clk 0:02:42]} 20. Qc2 {[%clk 0:01:38]}  Qg4 {[%clk 0:02:40]} 21. Qg2 {[%clk 0:01:14]}  Bxd4+ {[%clk 0:02:30]} 22. cxd4 {[%clk 0:01:14]}  Nd6 {[%clk 0:02:29]} 23. h3 {[%clk 0:01:06]}  Qd7 {[%clk 0:02:29]} 24. Rae1 {[%clk 0:01:03]}  Nf5 {[%clk 0:02:29]} 25. Qf2 {[%clk 0:00:54]}  Nd6 {[%clk 0:02:21]} 26. Kh2 {[%clk 0:00:51]}  h5 {[%clk 0:02:21]} 27. Re5 {[%clk 0:00:50]}  Nf7 {[%clk 0:02:17]} 28. Rxe8 {[%clk 0:00:40]}  Rxe8 {[%clk 0:02:16]} 29. Re1 {[%clk 0:00:40]}  Nd6 {[%clk 0:02:12]} 30. Re5 {[%clk 0:00:38]}  a6 {[%clk 0:01:50]} 31. Qe2 {[%clk 0:00:37]}  Rd8 {[%clk 0:01:40]} 32. Re7 {[%clk 0:00:26]}  Qc6 {[%clk 0:01:40]} 33. Qg2 {[%clk 0:00:25]}  Qb5 {[%clk 0:01:38]} 34. Qc2 {[%clk 0:00:23]}  Rd7 {[%clk 0:01:31]} 35. Re5 {[%clk 0:00:23]}  Qf1 {[%clk 0:01:29]} 36. Bc3 {[%clk 0:00:18]}  h4 {[%clk 0:01:27]} 37. Qg2 {[%clk 0:00:16]}  Qd3 {[%clk 0:01:25]} 38. Bb2 {[%clk 0:00:14]}  hxg3+ {[%clk 0:01:19]} 39. Qxg3 {[%clk 0:00:14]}  Qd2+ {[%clk 0:01:20]} 40. Qg2 {[%clk 0:00:14]}  Qxf4+ {[%clk 0:01:20]} 41. Kh1 {[%clk 0:00:12]}  Rh7 {[%clk 0:01:14]} 42. Bc3 {[%clk 0:00:08]}  Nf5 {[%clk 0:01:02]} 43. Be1 {[%clk 0:00:06]}  Ne3 {[%clk 0:00:51]} 44. Re8+ {[%clk 0:00:03]}  Kd7 {[%clk 0:00:51]} 45. Qe4 {[%clk 0:00:02]}  Rxh3+ {[%clk 0:00:50]} 46. Kg1 {[%clk 0:00:01]}  Qf1# {[%clk 0:00:51]} 0-1


[Site "https://www.chess.com"]

[Event "Titled Tuesday Blitz May 16 Early 2023"]
[White "Volkov, Maksim"]
[Black "Nguyen, Ngoc Truong Son"]
[WhiteFideId "54123070"]
[BlackFideId "12401110"]
[WhiteElo "2297"]
[BlackElo "2556"]
[Result "0-1"]
[Round "08"]
[TimeControl "180+2"]
[Date "2023.05.16"]
[WhiteClock "0:00:01"]
[BlackClock "0:00:11"]

1. d4 {[%clk 0:03:00]}  Nf6 {[%clk 0:02:58]} 2. c4 {[%clk 0:03:01]}  e6 {[%clk 0:02:57]} 3. g3 {[%clk 0:03:01]}  c5 {[%clk 0:02:58]} 4. d5 {[%clk 0:03:01]}  exd5 {[%clk 0:02:58]} 5. cxd5 {[%clk 0:03:02]}  b5 {[%clk 0:02:58]} 6. Nf3 {[%clk 0:02:54]}  Bd6 {[%clk 0:02:55]} 7. e4 {[%clk 0:02:53]}  Nxe4 {[%clk 0:02:53]} 8. Bd3 {[%clk 0:02:50]}  f5 {[%clk 0:02:49]} 9. O-O {[%clk 0:02:46]}  O-O {[%clk 0:02:49]} 10. Bxb5 {[%clk 0:02:41]}  Ba6 {[%clk 0:02:46]} 11. Bxa6 {[%clk 0:02:26]}  Nxa6 {[%clk 0:02:47]} 12. Na3 {[%clk 0:02:26]}  Rb8 {[%clk 0:02:42]} 13. Nc4 {[%clk 0:02:25]}  Nc7 {[%clk 0:02:16]} 14. Be3 {[%clk 0:02:08]}  Ne8 {[%clk 0:02:04]} 15. Nfd2 {[%clk 0:01:59]}  Nxd2 {[%clk 0:01:18]} 16. Bxd2 {[%clk 0:02:00]}  f4 {[%clk 0:01:04]} 17. Qg4 {[%clk 0:01:17]}  Nf6 {[%clk 0:00:47]} 18. Qh4 {[%clk 0:01:08]}  Ne4 {[%clk 0:00:42]} 19. Qxd8 {[%clk 0:01:06]}  Rbxd8 {[%clk 0:00:38]} 20. Ba5 {[%clk 0:00:48]}  Rde8 {[%clk 0:00:27]} 21. f3 {[%clk 0:00:48]}  fxg3 {[%clk 0:00:27]} 22. fxe4 {[%clk 0:00:47]}  gxh2+ {[%clk 0:00:26]} 23. Kg2 {[%clk 0:00:48]}  Bf4 {[%clk 0:00:24]} 24. Rae1 {[%clk 0:00:40]}  Rf6 {[%clk 0:00:20]} 25. Bc3 {[%clk 0:00:35]}  Rg6+ {[%clk 0:00:19]} 26. Kh1 {[%clk 0:00:35]}  Rg4 {[%clk 0:00:18]} 27. Bd2 {[%clk 0:00:22]}  Bb8 {[%clk 0:00:17]} 28. b3 {[%clk 0:00:17]}  Rexe4 {[%clk 0:00:16]} 29. Rxe4 {[%clk 0:00:15]}  Rxe4 {[%clk 0:00:17]} 30. Rf2 {[%clk 0:00:14]}  Rd4 {[%clk 0:00:16]} 31. Rf1 {[%clk 0:00:10]}  Rxd5 {[%clk 0:00:16]} 32. Be3 {[%clk 0:00:08]}  h6 {[%clk 0:00:15]} 33. Kg2 {[%clk 0:00:07]}  Rd3 {[%clk 0:00:14]} 34. Bxc5 {[%clk 0:00:06]}  d5 {[%clk 0:00:14]} 35. Nd6 {[%clk 0:00:06]}  Rd2+ {[%clk 0:00:14]} 36. Kh1 {[%clk 0:00:06]}  Rxa2 {[%clk 0:00:13]} 37. b4 {[%clk 0:00:06]}  Rc2 {[%clk 0:00:12]} 38. Rd1 {[%clk 0:00:04]}  a5 {[%clk 0:00:12]} 39. Rxd5 {[%clk 0:00:03]}  a4 {[%clk 0:00:12]} 40. Rd1 {[%clk 0:00:02]}  a3 {[%clk 0:00:12]} 41. Nb5 {[%clk 0:00:02]}  a2 {[%clk 0:00:11]} 42. Bd4 {[%clk 0:00:02]}  Rc4 {[%clk 0:00:08]} 43. Ba1 {[%clk 0:00:01]}  Rxb4 {[%clk 0:00:08]} 44. Rd8+ {[%clk 0:00:01]}  Kh7 {[%clk 0:00:08]} 45. Rxb8 {[%clk 0:00:02]}  Rb1+ {[%clk 0:00:08]} 46. Kxh2 {[%clk 0:00:03]}  Rxa1 {[%clk 0:00:09]} 47. Ra8 {[%clk 0:00:03]}  Rb1 {[%clk 0:00:10]} 48. Rxa2 {[%clk 0:00:02]}  Rxb5 {[%clk 0:00:10]} 49. Kg3 {[%clk 0:00:02]}  Rb4 {[%clk 0:00:10]} 50. Ra6 {[%clk 0:00:01]}  h5 {[%clk 0:00:10]} 51. Ra7 {[%clk 0:00:02]}  Kh6 {[%clk 0:00:10]} 52. Ra6+ {[%clk 0:00:02]}  g6 {[%clk 0:00:11]} 53. Rb6 {[%clk 0:00:03]}  h4+ {[%clk 0:00:11]} 54. Kh3 {[%clk 0:00:01]}  Rxb6 {[%clk 0:00:11]} 0-1


[Site "https://www.chess.com"]

[Event "Titled Tuesday Blitz May 16 Early 2023"]
[White "Pakleza, Zbigniew"]
[Black "Koellner, Ruben Gideon"]
[WhiteFideId "1119290"]
[BlackFideId "12993093"]
[WhiteElo "2410"]
[BlackElo "2314"]
[Result "1-0"]
[Round "08"]
[TimeControl "180+2"]
[Date "2023.05.16"]
[WhiteClock "0:00:18"]
[BlackClock "0:00:55"]

1. d4 {[%clk 0:03:00]}  d6 {[%clk 0:02:55]} 2. Nf3 {[%clk 0:03:00]}  Nf6 {[%clk 0:02:54]} 3. Bf4 {[%clk 0:03:00]}  Nc6 {[%clk 0:02:54]} 4. e3 {[%clk 0:02:58]}  g6 {[%clk 0:02:55]} 5. h3 {[%clk 0:02:59]}  Bg7 {[%clk 0:02:56]} 6. Be2 {[%clk 0:02:59]}  O-O {[%clk 0:02:56]} 7. O-O {[%clk 0:03:00]}  Nd7 {[%clk 0:02:57]} 8. c4 {[%clk 0:03:00]}  e5 {[%clk 0:02:58]} 9. Bh2 {[%clk 0:03:01]}  h6 {[%clk 0:02:58]} 10. Nc3 {[%clk 0:03:01]}  f5 {[%clk 0:02:58]} 11. Rc1 {[%clk 0:02:49]}  f4 {[%clk 0:02:58]} 12. dxe5 {[%clk 0:02:46]}  dxe5 {[%clk 0:02:58]} 13. Qc2 {[%clk 0:02:27]}  g5 {[%clk 0:02:57]} 14. Rcd1 {[%clk 0:02:26]}  Ne7 {[%clk 0:02:44]} 15. exf4 {[%clk 0:02:22]}  exf4 {[%clk 0:02:44]} 16. Bd3 {[%clk 0:02:15]}  Qe8 {[%clk 0:02:36]} 17. Rfe1 {[%clk 0:02:08]}  Qf7 {[%clk 0:02:34]} 18. Nb5 {[%clk 0:01:59]}  Nc5 {[%clk 0:02:21]} 19. Bh7+ {[%clk 0:01:50]}  Kh8 {[%clk 0:02:21]} 20. Nxc7 {[%clk 0:01:38]}  Rb8 {[%clk 0:02:21]} 21. b4 {[%clk 0:01:31]}  Bf5 {[%clk 0:02:09]} 22. Bxf5 {[%clk 0:01:28]}  Nxf5 {[%clk 0:02:10]} 23. Nb5 {[%clk 0:01:03]}  Na6 {[%clk 0:01:59]} 24. a3 {[%clk 0:00:57]}  Rbc8 {[%clk 0:01:59]} 25. c5 {[%clk 0:00:51]}  Nc7 {[%clk 0:01:54]} 26. Nd6 {[%clk 0:00:46]}  Nxd6 {[%clk 0:01:52]} 27. cxd6 {[%clk 0:00:40]}  Nb5 {[%clk 0:01:52]} 28. Qd3 {[%clk 0:00:28]}  Nc3 {[%clk 0:01:48]} 29. Rd2 {[%clk 0:00:28]}  Rcd8 {[%clk 0:01:41]} 30. Ne5 {[%clk 0:00:22]}  Qb3 {[%clk 0:01:21]} 31. Ng6+ {[%clk 0:00:20]}  Kg8 {[%clk 0:01:22]} 32. Nxf8 {[%clk 0:00:19]}  Bxf8 {[%clk 0:01:18]} 33. d7 {[%clk 0:00:19]}  a5 {[%clk 0:01:05]} 34. Qg6+ {[%clk 0:00:19]}  Kh8 {[%clk 0:01:04]} 35. Qf6+ {[%clk 0:00:19]}  Kg8 {[%clk 0:01:02]} 36. Qxd8 {[%clk 0:00:19]}  Ne2+ {[%clk 0:00:55]} 37. Rdxe2 {[%clk 0:00:18]} 1-0


[Site "https://www.chess.com"]

[Event "Titled Tuesday Blitz May 16 Early 2023"]
[White "RobertDowneyJr0111"]
[Black "Averjanov, Alexey"]
[BlackFideId "14109867"]
[WhiteElo "2629"]
[BlackElo "2802"]
[Result "0-1"]
[Round "08"]
[TimeControl "180+2"]
[Date "2023.05.16"]
[WhiteClock "0:00:14"]
[BlackClock "0:01:40"]

1. e4 {[%clk 0:03:00]}  c6 {[%clk 0:02:59]} 2. Nf3 {[%clk 0:03:01]}  d5 {[%clk 0:03:00]} 3. Nc3 {[%clk 0:03:02]}  Bg4 {[%clk 0:03:00]} 4. h3 {[%clk 0:03:01]}  Bxf3 {[%clk 0:03:00]} 5. Qxf3 {[%clk 0:03:02]}  dxe4 {[%clk 0:03:00]} 6. Nxe4 {[%clk 0:03:02]}  Nd7 {[%clk 0:03:00]} 7. d4 {[%clk 0:03:02]}  Ngf6 {[%clk 0:03:00]} 8. Nxf6+ {[%clk 0:03:02]}  Nxf6 {[%clk 0:03:01]} 9. c3 {[%clk 0:03:03]}  e6 {[%clk 0:03:01]} 10. Bd3 {[%clk 0:03:03]}  Be7 {[%clk 0:03:02]} 11. O-O {[%clk 0:03:03]}  O-O {[%clk 0:03:02]} 12. Re1 {[%clk 0:03:04]}  Nd5 {[%clk 0:03:02]} 13. Bf4 {[%clk 0:02:51]}  Nxf4 {[%clk 0:03:00]} 14. Qxf4 {[%clk 0:02:52]}  g6 {[%clk 0:02:55]} 15. Qf3 {[%clk 0:02:48]}  Bf6 {[%clk 0:02:49]} 16. Rad1 {[%clk 0:02:44]}  Kg7 {[%clk 0:02:48]} 17. g3 {[%clk 0:02:38]}  Qb6 {[%clk 0:02:48]} 18. Re2 {[%clk 0:02:38]}  Rad8 {[%clk 0:02:47]} 19. h4 {[%clk 0:02:38]}  h5 {[%clk 0:02:47]} 20. Kg2 {[%clk 0:02:36]}  Rd7 {[%clk 0:02:47]} 21. Bc4 {[%clk 0:02:29]}  Rfd8 {[%clk 0:02:43]} 22. Rde1 {[%clk 0:02:29]}  Rd6 {[%clk 0:02:30]} 23. Re4 {[%clk 0:02:12]}  Qc7 {[%clk 0:02:22]} 24. g4 {[%clk 0:02:01]}  hxg4 {[%clk 0:02:16]} 25. Rxg4 {[%clk 0:02:02]}  Rh8 {[%clk 0:02:10]} 26. Rh1 {[%clk 0:02:01]}  Rh5 {[%clk 0:01:54]} 27. Kf1 {[%clk 0:00:46]}  c5 {[%clk 0:01:50]} 28. d5 {[%clk 0:00:18]}  exd5 {[%clk 0:01:47]} 29. Bxd5 {[%clk 0:00:14]}  Rdxd5 {[%clk 0:01:40]} 0-1


[Site "https://www.chess.com"]

[Event "Titled Tuesday Blitz May 16 Early 2023"]
[White "vlajkovicS"]
[Black "Sethuraman, S.P."]
[BlackFideId "5021596"]
[WhiteElo "2625"]
[BlackElo "2543"]
[Result "1-0"]
[Round "08"]
[TimeControl "180+2"]
[Date "2023.05.16"]
[WhiteClock "0:00:21"]
[BlackClock "0:00:05"]

1. d4 {[%clk 0:02:59]}  g6 {[%clk 0:02:59]} 2. h4 {[%clk 0:02:59]}  Nf6 {[%clk 0:02:58]} 3. Nc3 {[%clk 0:02:59]}  Bg7 {[%clk 0:02:53]} 4. e4 {[%clk 0:02:58]}  d6 {[%clk 0:02:53]} 5. h5 {[%clk 0:02:58]}  Nxh5 {[%clk 0:02:52]} 6. Rxh5 {[%clk 0:02:58]}  gxh5 {[%clk 0:02:52]} 7. Be3 {[%clk 0:02:59]}  Bg4 {[%clk 0:02:51]} 8. f3 {[%clk 0:02:59]}  Bd7 {[%clk 0:02:51]} 9. Nge2 {[%clk 0:02:59]}  e5 {[%clk 0:02:47]} 10. Qd2 {[%clk 0:03:00]}  Nc6 {[%clk 0:02:45]} 11. d5 {[%clk 0:03:00]}  Ne7 {[%clk 0:02:42]} 12. O-O-O {[%clk 0:02:56]}  Ng6 {[%clk 0:02:36]} 13. Ng3 {[%clk 0:02:55]}  Qh4 {[%clk 0:02:33]} 14. Nf5 {[%clk 0:02:55]}  Bxf5 {[%clk 0:02:31]} 15. exf5 {[%clk 0:02:55]}  Ne7 {[%clk 0:02:31]} 16. Bg5 {[%clk 0:02:48]}  Qd4 {[%clk 0:02:16]} 17. f6 {[%clk 0:02:48]}  Qxd2+ {[%clk 0:02:13]} 18. Rxd2 {[%clk 0:02:49]}  Rg8 {[%clk 0:02:11]} 19. fxg7 {[%clk 0:02:46]}  Rxg7 {[%clk 0:02:12]} 20. Bf6 {[%clk 0:02:34]}  Rg6 {[%clk 0:02:12]} 21. Ne4 {[%clk 0:02:34]}  Nf5 {[%clk 0:02:05]} 22. Bb5+ {[%clk 0:02:31]}  Kf8 {[%clk 0:02:02]} 23. Bd7 {[%clk 0:02:32]}  Ne3 {[%clk 0:02:01]} 24. Bh3 {[%clk 0:02:21]}  h6 {[%clk 0:01:55]} 25. b3 {[%clk 0:02:10]}  b5 {[%clk 0:01:54]} 26. g3 {[%clk 0:01:54]}  h4 {[%clk 0:01:32]} 27. g4 {[%clk 0:01:54]}  c6 {[%clk 0:01:07]} 28. dxc6 {[%clk 0:01:50]}  d5 {[%clk 0:01:07]} 29. c7 {[%clk 0:01:51]}  Rc8 {[%clk 0:01:04]} 30. Bxe5 {[%clk 0:01:43]}  Re6 {[%clk 0:00:58]} 31. Bf4 {[%clk 0:01:42]}  dxe4 {[%clk 0:00:55]} 32. Rd8+ {[%clk 0:01:41]}  Re8 {[%clk 0:00:54]} 33. Bxh6+ {[%clk 0:00:30]}  Ke7 {[%clk 0:00:54]} 34. Rxe8+ {[%clk 0:00:28]}  Kxe8 {[%clk 0:00:50]} 35. Bxe3 {[%clk 0:00:28]}  Rxc7 {[%clk 0:00:41]} 36. f4 {[%clk 0:00:20]}  b4 {[%clk 0:00:35]} 37. Kd2 {[%clk 0:00:19]}  a5 {[%clk 0:00:35]} 38. g5 {[%clk 0:00:19]}  a4 {[%clk 0:00:26]} 39. Bf5 {[%clk 0:00:19]}  axb3 {[%clk 0:00:22]} 40. axb3 {[%clk 0:00:20]}  Re7 {[%clk 0:00:21]} 41. Bf2 {[%clk 0:00:17]}  Rc7 {[%clk 0:00:15]} 42. Bxe4 {[%clk 0:00:17]}  h3 {[%clk 0:00:15]} 43. Bg1 {[%clk 0:00:15]}  Rd7+ {[%clk 0:00:13]} 44. Ke2 {[%clk 0:00:15]}  Rc7 {[%clk 0:00:14]} 45. Bf5 {[%clk 0:00:15]}  Rc3 {[%clk 0:00:14]} 46. Bd3 {[%clk 0:00:13]}  Ke7 {[%clk 0:00:11]} 47. Kf3 {[%clk 0:00:13]}  f6 {[%clk 0:00:07]} 48. g6 {[%clk 0:00:13]}  f5 {[%clk 0:00:07]} 49. Kg3 {[%clk 0:00:13]}  Rc6 {[%clk 0:00:06]} 50. Kxh3 {[%clk 0:00:12]}  Rxg6 {[%clk 0:00:06]} 51. Bf2 {[%clk 0:00:12]}  Rh6+ {[%clk 0:00:05]} 52. Bh4+ {[%clk 0:00:12]}  Ke6 {[%clk 0:00:05]} 53. Kg3 {[%clk 0:00:13]}  Rh8 {[%clk 0:00:05]} 54. Bg5 {[%clk 0:00:13]}  Rg8 {[%clk 0:00:06]} 55. Kf3 {[%clk 0:00:14]}  Rc8 {[%clk 0:00:06]} 56. Ke3 {[%clk 0:00:14]}  Rb8 {[%clk 0:00:06]} 57. Kd4 {[%clk 0:00:14]}  Rd8+ {[%clk 0:00:06]} 58. Kc4 {[%clk 0:00:15]}  Rd6 {[%clk 0:00:04]} 59. Kxb4 {[%clk 0:00:15]}  Rd4+ {[%clk 0:00:05]} 60. Kc5 {[%clk 0:00:15]}  Rd5+ {[%clk 0:00:05]} 61. Kc4 {[%clk 0:00:15]}  Rd7 {[%clk 0:00:05]} 62. b4 {[%clk 0:00:16]}  Rc7+ {[%clk 0:00:05]} 63. Kb3 {[%clk 0:00:16]}  Rd7 {[%clk 0:00:06]} 64. b5 {[%clk 0:00:17]}  Rc7 {[%clk 0:00:06]} 65. Kb4 {[%clk 0:00:18]}  Rb7 {[%clk 0:00:07]} 66. Kc5 {[%clk 0:00:18]}  Rc7+ {[%clk 0:00:07]} 67. Kb6 {[%clk 0:00:18]}  Rc3 {[%clk 0:00:08]} 68. Kb7 {[%clk 0:00:18]}  Kd5 {[%clk 0:00:09]} 69. Bxf5 {[%clk 0:00:18]}  Rc5 {[%clk 0:00:09]} 70. Bd3 {[%clk 0:00:18]}  Kd4 {[%clk 0:00:09]} 71. Be7 {[%clk 0:00:18]}  Rd5 {[%clk 0:00:08]} 72. Bf6+ {[%clk 0:00:18]}  Kc5 {[%clk 0:00:08]} 73. Be5 {[%clk 0:00:19]}  Kb4 {[%clk 0:00:08]} 74. b6 {[%clk 0:00:19]}  Ka5 {[%clk 0:00:08]} 75. Kc6 {[%clk 0:00:19]}  Rd8 {[%clk 0:00:08]} 76. b7 {[%clk 0:00:20]}  Re8 {[%clk 0:00:07]} 77. Bc7+ {[%clk 0:00:19]}  Ka4 {[%clk 0:00:07]} 78. Kd7 {[%clk 0:00:20]}  Rh8 {[%clk 0:00:07]} 79. Bd8 {[%clk 0:00:20]}  Rh7+ {[%clk 0:00:05]} 80. Bxh7 {[%clk 0:00:21]} 1-0


[Site "https://www.chess.com"]